[Event "Titled Tuesday Blitz February 22 Early 2022"]
[White "Muradov, Soltan"]
[Black "Dauner, Benedikt"]
[WhiteFideId "14002108"]
[BlackFideId "16225899"]
[WhiteElo "1854"]
[BlackElo "2230"]
[Result "1-0"]
[Round "05"]
[TimeControl "180+1"]
[Date "2022.02.22"]
[WhiteClock "0:00:24"]
[BlackClock "0:00:02"]

1. d4 {[%clk 0:03:00]}  d5 {[%clk 0:02:57]} 2. Nf3 {[%clk 0:03:00]}  Nf6 {[%clk 0:02:56]} 3. Bf4 {[%clk 0:03:00]}  c5 {[%clk 0:02:55]} 4. e3 {[%clk 0:03:00]}  Nc6 {[%clk 0:02:55]} 5. c3 {[%clk 0:03:00]}  Qb6 {[%clk 0:02:54]} 6. Qb3 {[%clk 0:03:00]}  c4 {[%clk 0:02:54]} 7. Qxb6 {[%clk 0:03:00]}  axb6 {[%clk 0:02:55]} 8. Na3 {[%clk 0:03:00]}  Bf5 {[%clk 0:02:35]} 9. Nb5 {[%clk 0:02:58]}  Ra5 {[%clk 0:02:34]} 10. a4 {[%clk 0:02:54]}  e6 {[%clk 0:02:31]} 11. h3 {[%clk 0:02:53]}  h6 {[%clk 0:02:29]} 12. g4 {[%clk 0:02:44]}  Bh7 {[%clk 0:02:28]} 13. Bg2 {[%clk 0:02:43]}  Kd7 {[%clk 0:02:16]} 14. Bc7 {[%clk 0:02:39]}  Bc2 {[%clk 0:02:04]} 15. Bxb6 {[%clk 0:02:34]}  Rxa4 {[%clk 0:02:04]} 16. Kd2 {[%clk 0:02:29]}  Bb3 {[%clk 0:01:58]} 17. Ne5+ {[%clk 0:02:08]}  Nxe5 {[%clk 0:01:51]} 18. dxe5 {[%clk 0:02:09]}  Ne8 {[%clk 0:01:46]} 19. Nd4 {[%clk 0:02:05]}  Rxa1 {[%clk 0:01:38]} 20. Rxa1 {[%clk 0:02:04]}  h5 {[%clk 0:01:20]} 21. gxh5 {[%clk 0:02:00]}  Be7 {[%clk 0:01:13]} 22. Ra7 {[%clk 0:01:58]}  Kc8 {[%clk 0:01:00]} 23. Ra8+ {[%clk 0:01:46]}  Kd7 {[%clk 0:01:00]} 24. Ra7 {[%clk 0:01:35]}  Kc8 {[%clk 0:00:57]} 25. Nxb3 {[%clk 0:01:09]}  cxb3 {[%clk 0:00:56]} 26. c4 {[%clk 0:01:10]}  Bb4+ {[%clk 0:00:47]} 27. Ke2 {[%clk 0:01:07]}  Rxh5 {[%clk 0:00:43]} 28. cxd5 {[%clk 0:01:05]}  Rg5 {[%clk 0:00:43]} 29. Ra8+ {[%clk 0:00:51]}  Kd7 {[%clk 0:00:43]} 30. dxe6+ {[%clk 0:00:43]}  fxe6 {[%clk 0:00:42]} 31. Bxb7 {[%clk 0:00:44]}  Rxe5 {[%clk 0:00:25]} 32. Bd4 {[%clk 0:00:44]}  Rb5 {[%clk 0:00:22]} 33. Ba6 {[%clk 0:00:41]}  Ra5 {[%clk 0:00:20]} 34. Ra7+ {[%clk 0:00:33]}  Kd6 {[%clk 0:00:17]} 35. Bc4 {[%clk 0:00:33]}  Rxa7 {[%clk 0:00:16]} 36. Bxa7 {[%clk 0:00:33]}  Nc7 {[%clk 0:00:16]} 37. Bxb3 {[%clk 0:00:33]}  Nd5 {[%clk 0:00:15]} 38. Bd4 {[%clk 0:00:32]}  Nf6 {[%clk 0:00:14]} 39. Bc2 {[%clk 0:00:27]}  Nd5 {[%clk 0:00:12]} 40. Bxg7 {[%clk 0:00:26]}  Ba5 {[%clk 0:00:12]} 41. h4 {[%clk 0:00:25]}  Bd8 {[%clk 0:00:12]} 42. h5 {[%clk 0:00:24]}  Bg5 {[%clk 0:00:12]} 43. h6 {[%clk 0:00:24]}  Ne7 {[%clk 0:00:13]} 44. h7 {[%clk 0:00:24]}  Ng6 {[%clk 0:00:05]} 45. Bxg6 {[%clk 0:00:22]}  Bf6 {[%clk 0:00:04]} 46. Bxf6 {[%clk 0:00:23]}  Kd5 {[%clk 0:00:03]} 47. h8=Q {[%clk 0:00:24]}  Kc5 {[%clk 0:00:03]} 48. Bd4+ {[%clk 0:00:24]}  Kd5 {[%clk 0:00:03]} 49. Qe5+ {[%clk 0:00:24]}  Kc6 {[%clk 0:00:03]} 50. Qc5+ {[%clk 0:00:25]}  Kd7 {[%clk 0:00:03]} 51. Be5 {[%clk 0:00:23]}  Kd8 {[%clk 0:00:02]} 52. Qd6+ {[%clk 0:00:24]} 1-0


[Site "https://www.chess.com"]

[Event "Titled Tuesday Blitz February 22 Early 2022"]
[White "Narayanan.S.L"]
[Black "Abdisalimov, Abdimalik"]
[WhiteFideId "5058422"]
[BlackFideId "14206323"]
[WhiteElo "2494"]
[BlackElo "2401"]
[Result "1-0"]
[Round "05"]
[TimeControl "180+1"]
[Date "2022.02.22"]
[WhiteClock "0:00:56"]
[BlackClock "0:00:00"]

1. d4 {[%clk 0:03:00]}  Nf6 {[%clk 0:02:59]} 2. Nc3 {[%clk 0:02:59]}  d5 {[%clk 0:02:59]} 3. Bf4 {[%clk 0:02:58]}  a6 {[%clk 0:02:59]} 4. e4 {[%clk 0:02:58]}  dxe4 {[%clk 0:02:59]} 5. f3 {[%clk 0:02:58]}  Bf5 {[%clk 0:02:45]} 6. fxe4 {[%clk 0:02:33]}  Nxe4 {[%clk 0:02:43]} 7. Bd3 {[%clk 0:02:33]}  Nxc3 {[%clk 0:02:36]} 8. bxc3 {[%clk 0:02:34]}  Bxd3 {[%clk 0:02:27]} 9. Qxd3 {[%clk 0:02:34]}  e6 {[%clk 0:02:28]} 10. Nf3 {[%clk 0:02:33]}  Be7 {[%clk 0:02:26]} 11. O-O {[%clk 0:02:33]}  O-O {[%clk 0:02:26]} 12. Kh1 {[%clk 0:02:15]}  c5 {[%clk 0:02:22]} 13. Rad1 {[%clk 0:02:15]}  Nc6 {[%clk 0:02:22]} 14. Ne5 {[%clk 0:02:13]}  Rc8 {[%clk 0:02:14]} 15. Qg3 {[%clk 0:02:12]}  Kh8 {[%clk 0:01:33]} 16. dxc5 {[%clk 0:01:31]}  Qe8 {[%clk 0:01:32]} 17. Nd7 {[%clk 0:01:30]}  Rg8 {[%clk 0:01:31]} 18. Nb6 {[%clk 0:01:30]}  Rd8 {[%clk 0:01:28]} 19. Bd6 {[%clk 0:01:30]}  f6 {[%clk 0:01:20]} 20. h3 {[%clk 0:01:27]}  e5 {[%clk 0:01:20]} 21. Nc4 {[%clk 0:01:26]}  Qf7 {[%clk 0:01:16]} 22. Ne3 {[%clk 0:01:26]}  Rd7 {[%clk 0:01:03]} 23. c4 {[%clk 0:01:22]}  Bd8 {[%clk 0:01:02]} 24. c3 {[%clk 0:01:22]}  Na5 {[%clk 0:01:02]} 25. Qg4 {[%clk 0:01:19]}  Nc6 {[%clk 0:00:59]} 26. Qe4 {[%clk 0:01:16]}  Re8 {[%clk 0:00:59]} 27. Nd5 {[%clk 0:01:15]}  Qe6 {[%clk 0:00:59]} 28. g4 {[%clk 0:01:14]}  Rf7 {[%clk 0:00:59]} 29. Ne3 {[%clk 0:01:13]}  g6 {[%clk 0:00:59]} 30. Rf3 {[%clk 0:01:11]}  Rg8 {[%clk 0:00:56]} 31. Rdf1 {[%clk 0:01:11]}  Be7 {[%clk 0:00:41]} 32. Qd5 {[%clk 0:01:11]}  Qxd5 {[%clk 0:00:31]} 33. Nxd5 {[%clk 0:01:11]}  Bd8 {[%clk 0:00:29]} 34. Nxf6 {[%clk 0:01:10]}  Bxf6 {[%clk 0:00:29]} 35. Rxf6 {[%clk 0:01:11]}  Rxf6 {[%clk 0:00:30]} 36. Rxf6 {[%clk 0:01:11]}  Kg7 {[%clk 0:00:31]} 37. g5 {[%clk 0:01:09]}  Re8 {[%clk 0:00:27]} 38. Kg2 {[%clk 0:01:10]}  Na5 {[%clk 0:00:27]} 39. Kf3 {[%clk 0:01:08]}  e4+ {[%clk 0:00:27]} 40. Ke2 {[%clk 0:01:05]}  Nxc4 {[%clk 0:00:28]} 41. c6 {[%clk 0:01:00]}  bxc6 {[%clk 0:00:21]} 42. Bc5 {[%clk 0:01:00]}  e3 {[%clk 0:00:13]} 43. Rxc6 {[%clk 0:00:57]}  Kg8 {[%clk 0:00:13]} 44. Bd4 {[%clk 0:00:58]}  Ne5 {[%clk 0:00:09]} 45. Bxe5 {[%clk 0:00:55]}  Rxe5 {[%clk 0:00:10]} 46. Rxa6 {[%clk 0:00:56]}  Rxg5 {[%clk 0:00:10]} 47. Kxe3 {[%clk 0:00:56]}  Rg3+ {[%clk 0:00:10]} 48. Kd4 {[%clk 0:00:56]}  Rxh3 {[%clk 0:00:11]} 49. c4 {[%clk 0:00:57]}  h5 {[%clk 0:00:11]} 50. Rxg6+ {[%clk 0:00:56]}  Kf7 {[%clk 0:00:11]} 51. Rg2 {[%clk 0:00:57]}  Ra3 {[%clk 0:00:09]} 52. Kc5 {[%clk 0:00:57]}  h4 {[%clk 0:00:09]} 53. Kc6 {[%clk 0:00:56]}  h3 {[%clk 0:00:04]} 54. Re2 {[%clk 0:00:56]}  Ra6+ {[%clk 0:00:00]} 55. Kb7 {[%clk 0:00:56]} 1-0


[Site "https://www.chess.com"]

[Event "Titled Tuesday Blitz February 22 Early 2022"]
[White "Neiksans, Arturs"]
[Black "Yang, Kaiqi"]
[WhiteFideId "11601388"]
[BlackFideId "8604398"]
[WhiteElo "2447"]
[BlackElo "2373"]
[Result "1-0"]
[Round "05"]
[TimeControl "180+1"]
[Date "2022.02.22"]
[WhiteClock "0:00:15"]
[BlackClock "0:00:03"]

1. e4 {[%clk 0:01:50]}  e5 {[%clk 0:02:58]} 2. Nf3 {[%clk 0:01:49]}  Nc6 {[%clk 0:02:57]} 3. Bb5 {[%clk 0:01:49]}  a6 {[%clk 0:02:58]} 4. Ba4 {[%clk 0:01:49]}  Nf6 {[%clk 0:02:58]} 5. O-O {[%clk 0:01:49]}  Nxe4 {[%clk 0:02:58]} 6. d4 {[%clk 0:01:48]}  b5 {[%clk 0:02:58]} 7. Bb3 {[%clk 0:01:48]}  d5 {[%clk 0:02:58]} 8. dxe5 {[%clk 0:01:48]}  Be6 {[%clk 0:02:59]} 9. c3 {[%clk 0:01:45]}  Bc5 {[%clk 0:02:37]} 10. Nbd2 {[%clk 0:01:42]}  O-O {[%clk 0:02:23]} 11. Bc2 {[%clk 0:01:41]}  Nxf2 {[%clk 0:02:23]} 12. Rxf2 {[%clk 0:01:41]}  f6 {[%clk 0:02:23]} 13. exf6 {[%clk 0:01:37]}  Qxf6 {[%clk 0:02:10]} 14. Nf1 {[%clk 0:01:33]}  Bxf2+ {[%clk 0:02:04]} 15. Kxf2 {[%clk 0:01:33]}  Ne5 {[%clk 0:01:47]} 16. Be3 {[%clk 0:01:08]}  Nxf3 {[%clk 0:01:24]} 17. gxf3 {[%clk 0:01:08]}  Qh4+ {[%clk 0:01:09]} 18. Kg1 {[%clk 0:01:05]}  Rf6 {[%clk 0:01:02]} 19. Qd4 {[%clk 0:00:59]}  Qh5 {[%clk 0:00:52]} 20. Ng3 {[%clk 0:00:58]}  Qxf3 {[%clk 0:00:47]} 21. Rf1 {[%clk 0:00:54]}  Qg4 {[%clk 0:00:47]} 22. Rxf6 {[%clk 0:00:50]}  Qxd4 {[%clk 0:00:45]} 23. Bxd4 {[%clk 0:00:49]}  gxf6 {[%clk 0:00:45]} 24. Nh5 {[%clk 0:00:46]}  Kf7 {[%clk 0:00:44]} 25. Nf4 {[%clk 0:00:31]}  Rg8+ {[%clk 0:00:35]} 26. Kf2 {[%clk 0:00:30]}  Rg4 {[%clk 0:00:32]} 27. Kf3 {[%clk 0:00:29]}  Rh4 {[%clk 0:00:32]} 28. h3 {[%clk 0:00:30]}  Bxh3 {[%clk 0:00:20]} 29. Kg3 {[%clk 0:00:30]}  Rg4+ {[%clk 0:00:20]} 30. Kf3 {[%clk 0:00:23]}  Rh4 {[%clk 0:00:20]} 31. Bf2 {[%clk 0:00:20]}  Rh6 {[%clk 0:00:12]} 32. Nxd5 {[%clk 0:00:20]}  Be6 {[%clk 0:00:04]} 33. Nxc7 {[%clk 0:00:20]}  Bxa2 {[%clk 0:00:04]} 34. Nxa6 {[%clk 0:00:20]}  Bd5+ {[%clk 0:00:04]} 35. Kg3 {[%clk 0:00:19]}  Rh5 {[%clk 0:00:02]} 36. Be3 {[%clk 0:00:17]}  Re5 {[%clk 0:00:02]} 37. Kf2 {[%clk 0:00:15]}  Be4 {[%clk 0:00:02]} 38. Bb3+ {[%clk 0:00:15]}  Kg6 {[%clk 0:00:03]} 39. Nc5 {[%clk 0:00:14]}  h5 {[%clk 0:00:03]} 40. Nxe4 {[%clk 0:00:15]}  Rxe4 {[%clk 0:00:03]} 41. Bc2 {[%clk 0:00:15]}  Kf5 {[%clk 0:00:03]} 42. Kf3 {[%clk 0:00:15]} 1-0


[Site "https://www.chess.com"]

[Event "Titled Tuesday Blitz February 22 Early 2022"]
[White "Nosacheva, Mariya"]
[Black "Kirillov, Dmitry"]
[WhiteFideId "34111422"]
[BlackFideId "34180572"]
[WhiteElo "2055"]
[BlackElo "2076"]
[Result "1-0"]
[Round "05"]
[TimeControl "180+1"]
[Date "2022.02.22"]
[WhiteClock "0:00:47"]
[BlackClock "0:00:10"]

1. e4 {[%clk 0:02:58]}  c5 {[%clk 0:02:59]} 2. Nf3 {[%clk 0:02:56]}  e6 {[%clk 0:03:00]} 3. d3 {[%clk 0:02:53]}  Nc6 {[%clk 0:02:56]} 4. g3 {[%clk 0:02:52]}  Nf6 {[%clk 0:02:54]} 5. Bg2 {[%clk 0:02:51]}  d5 {[%clk 0:02:54]} 6. Nbd2 {[%clk 0:02:51]}  g6 {[%clk 0:02:52]} 7. O-O {[%clk 0:02:51]}  Bg7 {[%clk 0:02:52]} 8. Re1 {[%clk 0:02:49]}  O-O {[%clk 0:02:52]} 9. Qe2 {[%clk 0:02:35]}  e5 {[%clk 0:02:20]} 10. exd5 {[%clk 0:02:25]}  Nxd5 {[%clk 0:02:21]} 11. c3 {[%clk 0:02:21]}  Bf5 {[%clk 0:02:01]} 12. Nc4 {[%clk 0:02:17]}  Re8 {[%clk 0:01:53]} 13. Ng5 {[%clk 0:02:11]}  Nxc3 {[%clk 0:01:14]} 14. bxc3 {[%clk 0:02:00]}  Bxd3 {[%clk 0:01:14]} 15. Qg4 {[%clk 0:01:31]}  f5 {[%clk 0:01:13]} 16. Qh4 {[%clk 0:01:27]}  h6 {[%clk 0:01:13]} 17. Nb2 {[%clk 0:01:21]}  hxg5 {[%clk 0:00:56]} 18. Bxg5 {[%clk 0:00:54]}  Qd7 {[%clk 0:00:51]} 19. Nxd3 {[%clk 0:00:54]}  Qxd3 {[%clk 0:00:50]} 20. Rad1 {[%clk 0:00:55]}  Qxc3 {[%clk 0:00:38]} 21. Bd5+ {[%clk 0:00:54]}  Kf8 {[%clk 0:00:33]} 22. Bf6 {[%clk 0:00:48]}  Ne7 {[%clk 0:00:21]} 23. Qh7 {[%clk 0:00:47]}  Qa5 {[%clk 0:00:10]} 24. Qxg7# {[%clk 0:00:47]} 1-0


[Site "https://www.chess.com"]

[Event "Titled Tuesday Blitz February 22 Early 2022"]
[White "Oro, Luis"]
[Black "Bashirli, Saadat"]
[WhiteFideId "104094"]
[BlackFideId "13429990"]
[WhiteElo "2280"]
[BlackElo "1173"]
[Result "1-0"]
[Round "05"]
[TimeControl "180+1"]
[Date "2022.02.22"]
[WhiteClock "0:00:42"]
[BlackClock "0:00:52"]

1. e4 {[%clk 0:03:00]}  c5 {[%clk 0:02:58]} 2. Nf3 {[%clk 0:03:00]}  g6 {[%clk 0:02:57]} 3. d4 {[%clk 0:03:00]}  cxd4 {[%clk 0:02:56]} 4. Nxd4 {[%clk 0:03:01]}  Nc6 {[%clk 0:02:56]} 5. c4 {[%clk 0:03:00]}  Nf6 {[%clk 0:02:55]} 6. Nc3 {[%clk 0:02:59]}  Nxd4 {[%clk 0:02:53]} 7. Qxd4 {[%clk 0:02:59]}  d6 {[%clk 0:02:54]} 8. Be3 {[%clk 0:02:50]}  Bg7 {[%clk 0:02:53]} 9. Qd2 {[%clk 0:02:50]}  O-O {[%clk 0:02:50]} 10. Be2 {[%clk 0:02:47]}  Bd7 {[%clk 0:02:46]} 11. O-O {[%clk 0:02:44]}  a5 {[%clk 0:02:45]} 12. f3 {[%clk 0:02:40]}  a4 {[%clk 0:02:43]} 13. Rac1 {[%clk 0:02:28]}  Qa5 {[%clk 0:02:41]} 14. Rfd1 {[%clk 0:02:18]}  Kh8 {[%clk 0:02:34]} 15. Nb5 {[%clk 0:02:01]}  Qxd2 {[%clk 0:02:32]} 16. Rxd2 {[%clk 0:02:01]}  Bxb5 {[%clk 0:02:32]} 17. cxb5 {[%clk 0:02:00]}  Rfc8 {[%clk 0:02:31]} 18. Rdc2 {[%clk 0:02:00]}  Rxc2 {[%clk 0:02:28]} 19. Rxc2 {[%clk 0:01:59]}  d5 {[%clk 0:02:21]} 20. e5 {[%clk 0:01:54]}  Nd7 {[%clk 0:02:19]} 21. f4 {[%clk 0:01:52]}  b6 {[%clk 0:01:49]} 22. Rc7 {[%clk 0:01:40]}  Rd8 {[%clk 0:01:48]} 23. Bd4 {[%clk 0:01:32]}  f6 {[%clk 0:01:42]} 24. e6 {[%clk 0:01:27]}  Nc5 {[%clk 0:01:37]} 25. Rxe7 {[%clk 0:01:14]}  Kg8 {[%clk 0:01:30]} 26. Bf3 {[%clk 0:01:06]}  Kf8 {[%clk 0:01:25]} 27. Rf7+ {[%clk 0:01:05]}  Kg8 {[%clk 0:01:24]} 28. e7 {[%clk 0:01:00]}  Re8 {[%clk 0:00:59]} 29. Bxd5 {[%clk 0:00:57]}  Kh8 {[%clk 0:00:59]} 30. Bc6 {[%clk 0:00:54]}  Rc8 {[%clk 0:00:57]} 31. e8=Q+ {[%clk 0:00:47]}  Rxe8 {[%clk 0:00:57]} 32. Bxe8 {[%clk 0:00:48]}  Kg8 {[%clk 0:00:56]} 33. Ra7 {[%clk 0:00:44]}  Kf8 {[%clk 0:00:54]} 34. Bc6 {[%clk 0:00:42]}  Ne6 {[%clk 0:00:52]} 35. Bxb6 {[%clk 0:00:42]} 1-0


[Site "https://www.chess.com"]

[Event "Titled Tuesday Blitz February 22 Early 2022"]
[White "Pajeken, Jakob Leon"]
[Black "Osmonbekov, Talaibek"]
[WhiteFideId "12942839"]
[BlackFideId "2017253"]
[WhiteElo "2351"]
[BlackElo "2135"]
[Result "1-0"]
[Round "05"]
[TimeControl "180+1"]
[Date "2022.02.22"]
[WhiteClock "0:00:11"]
[BlackClock "0:00:01"]

1. d4 {[%clk 0:02:56]}  e6 {[%clk 0:02:58]} 2. Nf3 {[%clk 0:02:55]}  f5 {[%clk 0:02:57]} 3. g3 {[%clk 0:02:53]}  Nf6 {[%clk 0:02:58]} 4. Bg2 {[%clk 0:02:53]}  Be7 {[%clk 0:02:59]} 5. O-O {[%clk 0:02:54]}  O-O {[%clk 0:02:59]} 6. c4 {[%clk 0:02:54]}  d6 {[%clk 0:03:00]} 7. Nc3 {[%clk 0:02:54]}  Ne4 {[%clk 0:03:00]} 8. Qc2 {[%clk 0:02:53]}  Nxc3 {[%clk 0:02:59]} 9. Qxc3 {[%clk 0:02:53]}  a5 {[%clk 0:02:59]} 10. Re1 {[%clk 0:02:52]}  Bf6 {[%clk 0:02:40]} 11. e4 {[%clk 0:02:46]}  fxe4 {[%clk 0:02:12]} 12. Rxe4 {[%clk 0:02:47]}  Nc6 {[%clk 0:02:05]} 13. h4 {[%clk 0:02:40]}  h6 {[%clk 0:02:01]} 14. Bd2 {[%clk 0:02:34]}  e5 {[%clk 0:01:49]} 15. dxe5 {[%clk 0:02:33]}  Nxe5 {[%clk 0:01:48]} 16. Nxe5 {[%clk 0:02:32]}  Bxe5 {[%clk 0:01:48]} 17. Rxe5 {[%clk 0:02:30]}  dxe5 {[%clk 0:01:46]} 18. Bd5+ {[%clk 0:02:30]}  Kh8 {[%clk 0:01:45]} 19. Qxe5 {[%clk 0:02:31]}  c6 {[%clk 0:01:35]} 20. Bc3 {[%clk 0:02:17]}  Qf6 {[%clk 0:01:17]} 21. Qe3 {[%clk 0:02:16]}  Qg6 {[%clk 0:01:05]} 22. Be4 {[%clk 0:02:10]}  Bf5 {[%clk 0:01:02]} 23. Bxf5 {[%clk 0:02:10]}  Rxf5 {[%clk 0:01:01]} 24. Rd1 {[%clk 0:02:05]}  Raf8 {[%clk 0:01:01]} 25. Rd7 {[%clk 0:02:04]}  R5f7 {[%clk 0:00:57]} 26. Rxf7 {[%clk 0:02:01]}  Rxf7 {[%clk 0:00:57]} 27. Bxa5 {[%clk 0:01:59]}  Kh7 {[%clk 0:00:43]} 28. Bc3 {[%clk 0:01:52]}  Qb1+ {[%clk 0:00:40]} 29. Kg2 {[%clk 0:01:52]}  Qxa2 {[%clk 0:00:34]} 30. Qe4+ {[%clk 0:01:52]}  Kg8 {[%clk 0:00:33]} 31. Qe8+ {[%clk 0:01:50]}  Rf8 {[%clk 0:00:33]} 32. Qe6+ {[%clk 0:01:49]}  Rf7 {[%clk 0:00:33]} 33. Qe8+ {[%clk 0:01:43]}  Rf8 {[%clk 0:00:33]} 34. Qd7 {[%clk 0:01:42]}  Rf7 {[%clk 0:00:30]} 35. Qc8+ {[%clk 0:01:41]}  Kh7 {[%clk 0:00:28]} 36. Qe6 {[%clk 0:01:41]}  Kg8 {[%clk 0:00:27]} 37. h5 {[%clk 0:01:38]}  b5 {[%clk 0:00:22]} 38. Qe8+ {[%clk 0:01:35]}  Rf8 {[%clk 0:00:22]} 39. Qd7 {[%clk 0:01:25]}  Rf7 {[%clk 0:00:22]} 40. Qd8+ {[%clk 0:01:24]}  Rf8 {[%clk 0:00:22]} 41. Qd4 {[%clk 0:01:24]}  Rf7 {[%clk 0:00:20]} 42. cxb5 {[%clk 0:01:21]}  cxb5 {[%clk 0:00:19]} 43. Qc5 {[%clk 0:01:19]}  Qc4 {[%clk 0:00:18]} 44. Qd6 {[%clk 0:01:14]}  Qe4+ {[%clk 0:00:17]} 45. Kg1 {[%clk 0:01:13]}  Qf3 {[%clk 0:00:15]} 46. Qd8+ {[%clk 0:01:06]}  Rf8 {[%clk 0:00:15]} 47. Qd4 {[%clk 0:01:06]}  Rf7 {[%clk 0:00:14]} 48. Qe5 {[%clk 0:01:00]}  Qd1+ {[%clk 0:00:10]} 49. Kh2 {[%clk 0:00:57]}  Qd7 {[%clk 0:00:11]} 50. Qc5 {[%clk 0:00:51]}  Rf5 {[%clk 0:00:11]} 51. Qe3 {[%clk 0:00:47]}  Rxh5+ {[%clk 0:00:11]} 52. Kg2 {[%clk 0:00:47]}  Rf5 {[%clk 0:00:11]} 53. g4 {[%clk 0:00:46]}  Qd5+ {[%clk 0:00:10]} 54. f3 {[%clk 0:00:46]}  Rf8 {[%clk 0:00:09]} 55. Kg3 {[%clk 0:00:44]}  Qd6+ {[%clk 0:00:09]} 56. Kg2 {[%clk 0:00:44]}  Qd5 {[%clk 0:00:09]} 57. Kg3 {[%clk 0:00:44]}  Rf7 {[%clk 0:00:08]} 58. Kg2 {[%clk 0:00:42]}  Kh7 {[%clk 0:00:08]} 59. Kg3 {[%clk 0:00:42]}  h5 {[%clk 0:00:08]} 60. gxh5 {[%clk 0:00:42]}  Qxh5 {[%clk 0:00:08]} 61. Kg2 {[%clk 0:00:39]}  Qg6+ {[%clk 0:00:08]} 62. Kf2 {[%clk 0:00:37]}  Qc2+ {[%clk 0:00:08]} 63. Kg3 {[%clk 0:00:37]}  Qf5 {[%clk 0:00:09]} 64. Kf2 {[%clk 0:00:33]}  g5 {[%clk 0:00:09]} 65. Kg3 {[%clk 0:00:32]}  Qf4+ {[%clk 0:00:09]} 66. Qxf4 {[%clk 0:00:32]}  gxf4+ {[%clk 0:00:09]} 67. Kg4 {[%clk 0:00:32]}  Kg6 {[%clk 0:00:09]} 68. Be5 {[%clk 0:00:32]}  Rd7 {[%clk 0:00:06]} 69. Bxf4 {[%clk 0:00:32]}  Rd2 {[%clk 0:00:06]} 70. Be5 {[%clk 0:00:32]}  Re2 {[%clk 0:00:06]} 71. f4 {[%clk 0:00:32]}  Re3 {[%clk 0:00:06]} 72. Bd4 {[%clk 0:00:30]}  Rd3 {[%clk 0:00:06]} 73. f5+ {[%clk 0:00:26]}  Kf7 {[%clk 0:00:05]} 74. Be5 {[%clk 0:00:26]}  b4 {[%clk 0:00:04]} 75. Kf4 {[%clk 0:00:26]}  Rd1 {[%clk 0:00:04]} 76. Ke4 {[%clk 0:00:26]}  Re1+ {[%clk 0:00:03]} 77. Kd5 {[%clk 0:00:25]}  Rf1 {[%clk 0:00:03]} 78. f6 {[%clk 0:00:24]}  Rg1 {[%clk 0:00:02]} 79. Bd4 {[%clk 0:00:23]}  Rg4 {[%clk 0:00:02]} 80. Ke5 {[%clk 0:00:20]}  b3 {[%clk 0:00:02]} 81. Kd5 {[%clk 0:00:18]}  Rg2 {[%clk 0:00:01]} 82. Kc4 {[%clk 0:00:17]}  Rg4 {[%clk 0:00:01]} 83. Kc5 {[%clk 0:00:16]}  Rg3 {[%clk 0:00:01]} 84. Kb4 {[%clk 0:00:14]}  Rg4 {[%clk 0:00:01]} 85. Kc3 {[%clk 0:00:14]}  Rg3+ {[%clk 0:00:01]} 86. Kc4 {[%clk 0:00:13]}  Rg4 {[%clk 0:00:01]} 87. Kd5 {[%clk 0:00:12]}  Rg3 {[%clk 0:00:01]} 88. Be5 {[%clk 0:00:11]}  Rg4 {[%clk 0:00:01]} 89. Bc3 {[%clk 0:00:11]} 1-0


[Site "https://www.chess.com"]

[Event "Titled Tuesday Blitz February 22 Early 2022"]
[White "Pinheiro, Iung Alicio de O."]
[Black "Pichot, Alan"]
[WhiteFideId "2104350"]
[BlackFideId "110973"]
[WhiteElo "2594"]
[BlackElo "2543"]
[Result "0-1"]
[Round "05"]
[TimeControl "180+1"]
[Date "2022.02.22"]
[WhiteClock "0:00:06"]
[BlackClock "0:01:09"]

1. e4 {[%clk 0:03:00]}  e5 {[%clk 0:02:59]} 2. Bc4 {[%clk 0:02:58]}  Nf6 {[%clk 0:02:58]} 3. d3 {[%clk 0:02:57]}  c6 {[%clk 0:02:58]} 4. Nf3 {[%clk 0:02:57]}  d5 {[%clk 0:02:56]} 5. Bb3 {[%clk 0:02:57]}  Bd6 {[%clk 0:02:49]} 6. Nc3 {[%clk 0:02:51]}  O-O {[%clk 0:02:47]} 7. O-O {[%clk 0:02:42]}  d4 {[%clk 0:02:47]} 8. Ne2 {[%clk 0:02:40]}  h6 {[%clk 0:02:48]} 9. h3 {[%clk 0:02:39]}  c5 {[%clk 0:02:48]} 10. Ng3 {[%clk 0:02:36]}  Nc6 {[%clk 0:02:49]} 11. a3 {[%clk 0:02:35]}  Be6 {[%clk 0:02:49]} 12. Bxe6 {[%clk 0:02:30]}  fxe6 {[%clk 0:02:50]} 13. a4 {[%clk 0:02:27]}  Qe8 {[%clk 0:02:49]} 14. Nd2 {[%clk 0:02:26]}  g5 {[%clk 0:02:47]} 15. Nc4 {[%clk 0:02:25]}  Bc7 {[%clk 0:02:47]} 16. c3 {[%clk 0:02:20]}  Qg6 {[%clk 0:02:47]} 17. a5 {[%clk 0:01:57]}  h5 {[%clk 0:02:44]} 18. Qd2 {[%clk 0:01:38]}  h4 {[%clk 0:02:38]} 19. Nh1 {[%clk 0:01:30]}  g4 {[%clk 0:02:36]} 20. hxg4 {[%clk 0:01:29]}  Nxg4 {[%clk 0:02:34]} 21. Qg5 {[%clk 0:01:26]}  Qxg5 {[%clk 0:02:30]} 22. Bxg5 {[%clk 0:01:27]}  Bd8 {[%clk 0:02:31]} 23. Bxd8 {[%clk 0:01:21]}  Raxd8 {[%clk 0:02:32]} 24. f3 {[%clk 0:01:21]}  Nf6 {[%clk 0:02:31]} 25. Nf2 {[%clk 0:01:20]}  Nh5 {[%clk 0:02:32]} 26. Nh3 {[%clk 0:01:20]}  dxc3 {[%clk 0:02:32]} 27. bxc3 {[%clk 0:01:19]}  Rxd3 {[%clk 0:02:31]} 28. Rfc1 {[%clk 0:01:03]}  Ng3 {[%clk 0:02:31]} 29. Rc2 {[%clk 0:01:01]}  Kg7 {[%clk 0:02:31]} 30. Nf2 {[%clk 0:01:01]}  Rd7 {[%clk 0:02:29]} 31. Ng4 {[%clk 0:01:01]}  Rfd8 {[%clk 0:02:29]} 32. Ngxe5 {[%clk 0:00:47]}  Rd1+ {[%clk 0:02:27]} 33. Rxd1 {[%clk 0:00:46]}  Rxd1+ {[%clk 0:02:28]} 34. Kf2 {[%clk 0:00:47]}  Nxe5 {[%clk 0:01:56]} 35. Nxe5 {[%clk 0:00:48]}  Kf6 {[%clk 0:01:57]} 36. Nc4 {[%clk 0:00:47]}  Kg5 {[%clk 0:01:56]} 37. Ke3 {[%clk 0:00:43]}  Nh5 {[%clk 0:01:55]} 38. Rb2 {[%clk 0:00:41]}  Nf4 {[%clk 0:01:55]} 39. Ne5 {[%clk 0:00:35]}  Re1+ {[%clk 0:01:39]} 40. Kf2 {[%clk 0:00:34]}  Rc1 {[%clk 0:01:40]} 41. Rxb7 {[%clk 0:00:32]}  Rc2+ {[%clk 0:01:39]} 42. Kf1 {[%clk 0:00:32]}  Nxg2 {[%clk 0:01:14]} 43. Rxa7 {[%clk 0:00:18]}  Kf4 {[%clk 0:01:13]} 44. Ng6+ {[%clk 0:00:08]}  Kxf3 {[%clk 0:01:10]} 45. Rf7+ {[%clk 0:00:08]}  Kg3 {[%clk 0:01:11]} 46. a6 {[%clk 0:00:07]}  h3 {[%clk 0:01:08]} 47. a7 {[%clk 0:00:06]}  h2 {[%clk 0:01:09]} 0-1


[Site "https://www.chess.com"]